Cogmind - Beta 9 @@@ ROGUE MODE // 2019.10.25 @ 19:15:08 Player: Basil Result: Destroyed by L-31 Rogue with Katana Performance ------------- Evolutions (1) 500 Regions Visited (4) 800 Robots Destroyed (41) 205 Value Destroyed (667) 667 Prototype IDs (0) 0 Alien Tech Used (0) 0 Bonus (14) 14 TOTAL SCORE: 2186 Bonus ------- Follower Combat Kills 14 Cogmind --------- Core Integrity 0/400 Matter 185/300 Energy 100/100 System Corruption 0% Temperature Cool (0) Location -9/Mines Parts ------- Power (1) Propulsion (2) Utility (3) Power Shielding Weapon (3) Inventory (4) Improved Terrain Scanner Peak State ------------ Power Light Angular Momentum Engine Propulsion Wheel Wheel Utility Targeting Computer Power Shielding Weapon Shielding Weapon Light Assault Rifle Light Assault Rifle Light Cannon Inventory Sensor Array Improved Terrain Scanner [Rating: 13] Favorites ----------- Power Light Ion Engine Engine Light Ion Engine Propulsion Wheel Wheel Wheel Flight Unit Flight Unit Utility Targeting Computer Device Improved Terrain Scanner Processor Targeting Computer Protection Power Shielding Weapon Light Assault Rifle Energy Gun Small Laser Ballistic Gun Light Assault Rifle Ballistic Cannon Light Cannon Launcher Grenade Launcher Build | -11 -10 -10 -9 -9 ------- Run | Scr Mat Min Mat Min Slots Evolved 2 | . . . 2 . Power . | . . . . . Propulsion . | . . . . . Utility 1 | . . . 1 . Weapon 1 | . . . 1 . Parts Attached 49 | 7 12 15 13 2 Power 4 | 1 1 1 1 . Engine 4 | 1 1 1 1 . Core . | . . . . . Reactor . | . . . . . Propulsion 8 | 2 3 1 2 . Treads . | . . . . . Leg . | . . . . . Wheel 6 | 2 3 1 . . Hover . | . . . . . Flight 2 | . . . 2 . Utility 12 | 2 2 3 5 . Device 6 | 1 1 1 3 . Storage . | . . . . . Processor 2 | 1 1 . . . Hackware . | . . . . . Protection 4 | . . 2 2 . Artifact . | . . . . . Weapon 25 | 2 6 10 5 2 Energy Gun 7 | 1 1 . 3 2 Energy Cannon . | . . . . . Ballistic Gun 13 | 1 3 8 1 . Ballistic Cannon 1 | . . 1 . . Launcher 4 | . 2 1 1 . Special Weapon . | . . . . . Impact Weapon . | . . . . . Slashing Weapon . | . . . . . Piercing Weapon . | . . . . . Special Melee Weapon . | . . . . . Unidentified Prototypes . | . . . . . Parts Lost 23 | . 5 2 9 7 Power 3 | . 1 . 1 1 Propulsion 7 | . 2 1 2 2 Utility 3 | . . . 2 1 Weapon 10 | . 2 1 4 3 Highest Loss Streak 8 | . 4 2 8 7 Average Slot Usage (%) 92 | . 99 97 76 44 Engine 12 | . 13 14 9 8 Wheel 22 | . 28 25 7 . Flight 1 | . . . 4 13 Device 9 | . 14 7 7 2 Processor 12 | . 14 14 6 . Protection 6 | . . 7 16 11 Energy Gun 3 | . 5 . 5 8 Ballistic Gun 18 | . 17 22 12 . Ballistic Cannon 2 | . . 4 5 . Launcher 2 | . 4 . . . Naked Turns . | . . . . . Heaviest Build 16 | 9 9 14 16 14 Greatest Support 20 | 20 20 20 20 8 Greatest Overweight (x) 4 | . . 1 4 1 Average Overweight (x) . | . . . . . Largest Inventory Capacity 4 | 4 4 4 4 4 Average Capacity 4 | 4 4 4 4 4 Most Carried 4 | 4 4 4 4 2 Average Carried 3 | 2 3 3 1 1 Final Capacity 4 | . . . . 4 Final Carried 1 | . . . . 1 Class Distribution -------------------- 55% | Scavenger-Mutant 37% | Mutant 4% | Scavenger-Gunner Dominant Class ---------------- Scavenger-Mutant | -10/Materials Scavenger-Mutant | -10/Mines Scavenger-Gunner | -9/Materials Mutant | -9/Mines Resources | -11 -10 -10 -9 -9 ----------- Run | Scr Mat Min Mat Min Matter Collected 826 | 256 81 416 73 . Remotely . | . . . . . Salvage Created 707 | 29 275 165 196 42 Parts 77 | 7 26 19 23 2 Haulers Intercepted . | . . . . . Recyclers Shooed 3 | 1 . . 2 . Parts Field Recycled . | . . . . . Retrieved Matter . | . . . . . Parts Self-Destructed . | . . . . . Prevented . | . . . . . Kills | -11 -10 -10 -9 -9 ------- Run | Scr Mat Min Mat Min Combat Hostiles Destroyed 32 | . 7 9 15 1 Guns 15 | . 4 6 4 1 Cannons 4 | . . 2 2 . AOE 13 | . 3 1 9 . Classes Destroyed 8 | 1 6 1 . . Worker 3 | . 3 . . . Builder 1 | . 1 . . . Tunneler 3 | 2 . 1 . . Recycler 1 | . 1 . . . Watcher 1 | . 1 . . . Swarmer 22 | . 3 7 12 . Grunt 7 | . 4 . 2 1 Sentry 3 | . . 2 1 . Best Kill Streak 10 | 2 6 3 10 1 Combat Bots Only 10 | . 3 3 10 1 Max Kills in Single Turn 5 | 1 2 1 5 1 Gunslinging . | . . . . . Exploded 5 | . 1 1 5 . Melee . | . . . . . Uniques/NPCs Destroyed . | . . . . . Combat | -11 -10 -10 -9 -9 -------- Run | Scr Mat Min Mat Min Damage Taken 1848 | . 446 380 724 298 Core 553 | . 65 68 307 113 Absorbed by Shields . | . . . . . Core Remaining (%) 73 | 100 . 46 . . Volleys Fired 98 | 11 31 28 24 4 Largest 3 | 2 2 2 3 3 Hottest 195 | 60 70 55 195 195 Shots Fired 190 | 16 55 55 53 11 Gun 163 | 16 49 46 41 11 Cannon 14 | . . 5 9 . Launcher 13 | . 6 4 3 . Special . | . . . . . Kinetic 131 | 11 27 51 42 . Thermal 43 | 5 19 . 8 11 Explosive 13 | . 6 4 3 . Electromagnetic 3 | . 3 . . . Robot Hit Streak 18 | 4 8 18 5 7 Robot Miss Streak 4 | 1 4 3 3 1 Penetration Max . | . . . . . Secondary Targets 2 | . 2 . . . Max Gunslinging Chain 1 | . 1 . . . Shots Hit Robots 112 | 10 29 39 26 8 Core Hits 70 | 3 23 18 24 2 Critical Hits 1 | . . 1 . . Critical Kills . | . . . . . Critical Parts Destroyed 1 | . . 1 . . Melee Attacks . | . . . . . Impact . | . . . . . Slashing . | . . . . . Piercing . | . . . . . Sneak Attacks . | . . . . . Combat Hostiles . | . . . . . Follow-up Attacks . | . . . . . Damage Inflicted 2199 | 131 657 405 882 124 Guns 1033 | 131 321 241 216 124 Cannons 182 | . . 53 129 . Explosions 970 | . 336 111 523 . Melee . | . . . . . Ramming 14 | . . . 14 . Kinetic 839 | 99 178 294 268 . Thermal 364 | 32 131 . 77 124 Explosive 970 | . 336 111 523 . Electromagnetic 12 | . 12 . . . Impact . | . . . . . Slashing . | . . . . . Piercing . | . . . . . Highest Corruption . | . . . . . Average Corruption . | . . . . . Corruption Purged . | . . . . . Overload Shots . | . . . . . Overflow Damage 35 | . . . 35 . Projectiles . | . . . . . Explosions 35 | . . . 35 . Melee . | . . . . . Knockbacks 3 | . . 1 2 . Impact . | . . . . . Kinetic 3 | . . 1 2 . Secondary . | . . . . . Self-Inflicted Damage 54 | . . 1 53 . Shots 3 | . . 1 2 . Rammed 5 | . . . 5 . Targets Rammed 5 | . . . 5 . Kicked . | . . . . . Crushed . | . . . . . Highest Temperature 479 | . 87 51 135 479 Average Temperature 77 | . 38 18 58 246 Received Heat Transfer 414 | . 216 72 36 90 Effects 1 | . . . . 1 Shutdowns 1 | . . . . 1 Siege Activations . | . . . . . Robots Corrupted . | . . . . . Combat Hostiles . | . . . . . Parts Fried . | . . . . . Impact Corruptions . | . . . . . Robots Melted . | . . . . . Combat Hostiles . | . . . . . Parts Melted 1 | . 1 . . . Heat Transferred 856 | 75 300 . 185 296 Parts Sabotaged . | . . . . . Parts Stolen . | . . . . . Parts Stripped . | . . . . . Power Chain Reactions . | . . . . . Missiles Intercepted . | . . . . . Alert | -11 -10 -10 -9 -9 ------- Run | Scr Mat Min Mat Min Peak Influence 349 | 10 103 209 349 155 Average Influence 105 | 3 75 125 160 117 Maximum Alert Level 1 | . . 1 1 . Low Security (%) 84 | . . . . . Level 1 15 | . . . . . Level 2 . | . . . . . Level 3 . | . . . . . Level 4 . | . . . . . Level 5 . | . . . . . High Security . | . . . . . Max Security . | . . . . . Squads Dispatched 4 | . 3 . 1 . Investigation 1 | . . . 1 . Extermination . | . . . . . Reinforcement 3 | . 3 . . . Assault . | . . . . . Garrison . | . . . . . Intercept . | . . . . . Construction Impeded . | . . . . . Haulers Reinforced . | . . . . . Stealth | -11 -10 -10 -9 -9 --------- Run | Scr Mat Min Mat Min Distress Signals 3 | . . . 3 . Communications Jammed . | . . . . . Distress Signals . | . . . . . Times Spotted 57 | . 15 12 24 6 Peak Tracking Total 8 | . 4 3 8 5 Tactical Retreats 5 | . 1 . 4 . Traps | -11 -10 -10 -9 -9 ------- Run | Scr Mat Min Mat Min Traps Triggered 1 | . . . 1 . Indirectly . | . . . . . Trap Hack Attempts . | . . . . . Triggered . | . . . . . Disarmed . | . . . . . Reprogrammed . | . . . . . Reused . | . . . . . Traps Extracted . | . . . . . Installed . | . . . . . Triggered . | . . . . . Machines | -11 -10 -10 -9 -9 ---------- Run | Scr Mat Min Mat Min Machines Disabled 3 | . . 2 1 . Max in Single Turn 2 | . . 2 1 . Machines Sabotaged . | . . . . . Garrisons Compromised . | . . . . . Overloaded Fab Kills . | . . . . . Fab Network Shutdowns . | . . . . . Hacking | -11 -10 -10 -9 -9 --------- Run | Scr Mat Min Mat Min Machines Accessed 2 | . 1 . 1 . Terminals 1 | . . . 1 . Fabricators . | . . . . . Repair Stations . | . . . . . Recycling Units 1 | . 1 . . . Scanalyzers . | . . . . . Garrison Access . | . . . . . Total Hacks 5 | . 2 . 3 . Successful 5 | . 2 . 3 . Failed . | . . . . . Catastrophic . | . . . . . Database Lockouts . | . . . . . Manual . | . . . . . Terminals 3 | . . . 3 . Fabricators . | . . . . . Repair Stations . | . . . . . Recycling Units 2 | . 2 . . . Scanalyzers . | . . . . . Garrison Access . | . . . . . Terminal Hacks 3 | . . . 3 . Record 3 | . . . 3 . Fabricator Hacks . | . . . . . Repair Station Hacks . | . . . . . Recycling Unit Hacks 2 | . 2 . . . Process 1 | . 1 . . . Report Inventory 1 | . 1 . . . Scanalyzer . | . . . . . Garrison Access Hacks . | . . . . . Unauthorized Hacks . | . . . . . Terminals . | . . . . . Fabricators . | . . . . . Repair Stations . | . . . . . Recycling Units . | . . . . . Scanalyzers . | . . . . . Garrison Access . | . . . . . Data Cores Recovered . | . . . . . Used . | . . . . . Hacking Detections 2 | . 1 . 1 . Full Trace Events . | . . . . . Feedback Events . | . . . . . Feedback Blocked . | . . . . . Robot Schematics Acquired . | . . . . . Robots Built . | . . . . . Matter . | . . . . . Time . | . . . . . Total Robot Build Rating . | . . . . . Part Schematics Acquired . | . . . . . Parts Built . | . . . . . Matter . | . . . . . Time . | . . . . . Total Part Build Rating . | . . . . . Parts Repaired . | . . . . . Time . | . . . . . Parts Recycled . | . . . . . Recycled Matter 61 | . 61 . . . Retrieved Matter . | . . . . . Retrieved Components . | . . . . . Parts Scanalyzed . | . . . . . Part Schematics Acquired . | . . . . . Parts Damaged . | . . . . . Bothacking | -11 -10 -10 -9 -9 ------------ Run | Scr Mat Min Mat Min Used RIF Installer . | . . . . . Robots Hacked . | . . . . . Non-combat . | . . . . . Combat . | . . . . . Robot Hacks Applied . | . . . . . Relay Couplers Released . | . . . . . Robots Rewired . | . . . . . Allies Hacked . | . . . . . Hacks Repelled . | . . . . . Allies | -11 -10 -10 -9 -9 -------- Run | Scr Mat Min Mat Min Total Allies 2 | . . 2 . . Largest Group 2 | . . 2 . . Highest-Rated Group 39 | . . 39 . . Highest-Rated Ally 31 | . . 31 . . Total Orders . | . . . . . Ally Attacks 11 | . . 11 . . Total Damage 103 | . . 103 . . Kills 2 | . . 2 . . Allies Corrupted . | . . . . . Allies Melted . | . . . . . Intel | -11 -10 -10 -9 -9 ------- Run | Scr Mat Min Mat Min Robot Analysis Total . | . . . . . Derelict Logs Recovered 3 | . . 2 . 1 Drone Launches . | . . . . . Drone Recoveries . | . . . . . Exploration | -11 -10 -10 -9 -9 ------------- Run | Scr Mat Min Mat Min Turns Passed 1443 | 97 504 560 239 43 Spaces Moved 1313 | 66 468 545 168 66 Core 41 | 2 . . 34 5 Treads . | . . . . . Legs . | . . . . . Wheels 1172 | 64 468 545 95 . Hover . | . . . . . Flight 100 | . . . 39 61 Fastest Speed 37 | 50 80 80 37 40 Average Speed 78 | 79 80 81 81 41 Slowest Speed 250 | 80 80 90 250 117 Overloaded Moves . | . . . . . Propulsion Burnouts . | . . . . . Robots Hopped . | . . . . . Cave-ins Triggered . | . . . . . Exploration Rate (%) 34 | 5 39 95 20 12 Regions Visited 4 Branch Regions 2 Pre-discovered Areas 2 | . . 2 . . Known Exits Taken . | . . . . . Unknown Exits Taken 4 | 1 1 1 1 . Scrap Searched 2 | . . 2 . . Spaces Dug 4 | . . . 4 . Terrain Destroyed 89 | . 32 29 28 . Melee . | . . . . . Projectile . | . . . . . AOE 89 | . 32 29 28 . Actions | -11 -10 -10 -9 -9 --------- Run | Scr Mat Min Mat Min Total 1557 | 95 543 614 233 72 Wait 34 | . 16 9 9 . Move 1309 | 65 467 544 167 66 Hop . | . . . . . Pick Up 39 | 11 11 8 9 . Fast Attach 5 | . 1 4 . . Attach 28 | 7 5 1 13 2 Detach 4 | . . . 4 . Swap 16 | . 6 10 . . Drop 19 | 1 6 10 2 . Fire 98 | 11 31 28 24 4 Melee . | . . . . . Ram 5 | . . . 5 . Kick . | . . . . . Crush . | . . . . . Escape Stasis . | . . . . . Rewire . | . . . . . Trap . | . . . . . Miscellaneous . | . . . . . Route ------- -11/Scrapyard -10/Materials -10/Mines -9/Materials -9/Mines History --------- Turn | Location | Event 20 | -11/Scrapyard | Discovered new exit (range 13) 98 | -11/Scrapyard | Entered Materials 131 | -10/Materials | Discovered new exit (range 6) 279 | -10/Materials | Lost 4 parts (1p1n2w) 539 | -10/Materials | Build established: Scavenger-Mutant 602 | -10/Materials | Entered Mines 824 | -10/Mines | Learned location of Mines (-8) 1030 | -10/Mines | Core integrity fell below 50% 1085 | -10/Mines | Discovered new exit (range 3) 1162 | -10/Mines | Entered Materials 1162 | -9/Materials | Evolved 2 slots: Utility x1, Weapon x1 1304 | -9/Materials | Core integrity fell below 50% 1365 | -9/Materials | Destroyed 10 combat bots 1368 | -9/Materials | Lost 8 parts (1p1n2u4w) 1389 | -9/Materials | Discovered new exit (range 9) 1401 | -9/Materials | Entered Mines 1421 | -9/Mines | Learned Materials emergency access door positions 1432 | -9/Mines | Core integrity fell below 20% 1444 | -9/Mines | Destroyed by L-31 Rogue with Katana Last Messages --------------- mining tunnels only rarely experienced hostile [Derelict] activity, not enough to justify allocating significant resources to defense. This has recently changed with the [Infestation], for which the current response is to dispatch garrisoned Demolishers until a more permanent solution can be put in place. Triggered Alarm Trap. An alarm sounds. ALERT: Alarm triggered, dispatching investigation squad. LOCATION=UNKNOWN GOAL=ESCAPE Something is scanning the area. G-34 Mercenary destroyed. Particle Gun destroyed. Flight Unit destroyed. Sensor Array destroyed. Power failure, Lgt. Ion Engine shutdown. Acquired derelict log, extracted data. Data stored: Materials emergency access points. Lgt. Ion Engine destroyed. Flight Unit destroyed. Map ----- +----------------------------------------------------+ | | | | | | | | | | | | | | | | | | | | | | | | | | | ???????????????????????????????????????? | | ???????????????????????????????????????? | | ???????????????????????????????????????? | | ??????????????????????????????####?????? | | ?????????????????????????????## #?????? | | ?????????????????????????????# #?????? | | ????????????????????????????## #?????? | | ??????????????????????????### #?????? | | ?????????????????????###### ##????? | | ????????????????????## l ###??? | | ???????????????????## g ##?? | | ?????????????????### l #?? | | ????????????????## ###@ g #?? | | ????????????????# ##?##g ##?? | | ????????????????# #???## ### ###??? | | ????????????????## ##????# #?#####????? | | ?????????????????###??????# #??????????? | | ??????????????????????????# #??????????? | | ??????????????????????????# #?########?? | | ??????????????????????????# #?# #?? | | ???????????????????????#### ### ##? | | ???????????????????????# !%T#? | | ???????????????????????# ###### """ [#?? | | ???????????????????????#??????# """ #?? | | ??????????????????????????????# """ #?? | | ??????????????????????????????# #?? | | ??????????????????????????????# #?? | | ??????????????????????????????# #?? | | ??????????????????????????????# #?? | | ??????????????????????????????# #?? | | ??????????????????????????????########?? | | ???????????????????????????????????????? | | ???????????????????????????????????????? | | ???????????????????????????????????????? | | ???????????????????????????????????????? | | ???????????????????????????????????????? | | ???????????????????????????????????????? | +----------------------------------------------------+ Best States ------------- Heat Dissipation 28 Energy Generation 18 Energy Capacity 250 Matter Stores 300 Matter Capacity 300 Sight Range 16 Robot Scan Range 10 Terrain Scan Range 16 Terrain Scan Density 60 ECM Strength 1 Power Shielding 33 Weapon Shielding 33 Evasion (%) 62 Targeting Accuracy 5 Item Schematics ----------------- None Robot Schematics ------------------ None Fabricated ------------ Nothing Alien Tech Used ----------------- None Achievements -------------- Quick And Dirty Challenges ------------ None Game ------ Seed GammaSupersonicPick Manual? 0 Play Time 01:28:51 Cumulative 6.7 hours Start 2019.10.24 @ 17:11:13 End 2019.10.25 @ 19:15:08 Sessions 3 Manual Loads 0 Difficulty Rogue Special Mode None Game No. 7 Rogue 7 Adventurer 0 Explorer 0 Win Type - Total 0 Types 0/0/0/0/0/0/0 Lore% 6 Gallery% 7 Achievement% 4 Wizard Run 0 Options --------- ASCII 0 Keyboard 0 Movement Mouse Keybinds 0 Fullscreen 0 Font 16/SmallcapsGlow Map View 76x50 Tactical HUD 0 Map Filters NONE Filters NONE Steam 1 RUN: d7669cd1-3a25-4889-b6da-03bfe8a2b75c